Cogmind - Beta 14 @@@ ROGUE MODE // 2024.09.18 @ 17:08:13 Player: ZarZap Result: Self-destructed Performance ------------- Evolutions (1) 500 Regions Visited (2) 400 Robots Destroyed (6) 30 Value Destroyed (108) 108 Prototype IDs (2) 40 Alien Tech Used (0) 0 Bonus (0) 0 TOTAL SCORE: 1078 Bonus ------- None Cogmind --------- Core Integrity 287/400 Matter 262/300 Energy 125/125 System Corruption 0% Temperature Cool (6) Movement Rolling (90) Location -9/Materials Parts ------- > --- POWER (1) -------- Light Ion Engine > --- PROPULSION (4) --- Wheel Compact Wheel Flight Unit > --- UTILITY (2) ------ Small Storage Unit System Shield > --- WEAPON (2) ------- Light Assault Rifle Improved Assault Rifle > --- INVENTORY (8) ---- Light Ion Engine Improved Aluminum Leg Flight Unit System Shield Small Laser Light Assault Rifle Light Assault Rifle Flak Cannon Peak State ------------ > --- POWER ------------ Light Ion Engine > --- PROPULSION ------- Wheel Compact Wheel Compact Wheel Flight Unit > --- UTILITY ---------- Small Storage Unit System Shield > --- WEAPON ----------- Light Assault Rifle Improved Assault Rifle > --- INVENTORY -------- Light Ion Engine Improved Aluminum Leg Flight Unit System Shield Small Laser Light Assault Rifle Light Assault Rifle Flak Cannon [Rating: 14] Favorites ----------- Power Light Ion Engine Engine Light Ion Engine Propulsion Compact Wheel Wheel Compact Wheel Flight Unit Flight Unit Utility Small Storage Unit Storage Small Storage Unit Hackware System Shield Weapon Light Assault Rifle Energy Gun Small Laser Ballistic Gun Light Assault Rifle Build | -11 -10 -9 ------- Run | Yrd Mat Mat Slots Evolved 2 | . . 2 Power . | . . . Propulsion 2 | . . 2 Utility . | . . . Weapon . | . . . Parts Attached 14 | 6 . 8 Power 2 | 1 . 1 Engine 2 | 1 . 1 Core . | . . . Reactor . | . . . Propulsion 6 | 2 . 4 Treads . | . . . Leg . | . . . Wheel 4 | 2 . 2 Hover . | . . . Flight 2 | . . 2 Utility 2 | 1 . 1 Device . | . . . Storage 1 | 1 . . Processor . | . . . Hackware 1 | . . 1 Protection . | . . . Artifact . | . . . Weapon 4 | 2 . 2 Energy Gun 1 | 1 . . Energy Cannon . | . . . Ballistic Gun 3 | 1 . 2 Ballistic Cannon . | . . . Launcher . | . . . Special Weapon . | . . . Impact Weapon . | . . . Slashing Weapon . | . . . Piercing Weapon . | . . . Special Melee Weapon . | . . . Unidentified Prototypes 2 | . . 2 Parts Lost 2 | . . 2 Power . | . . . Propulsion 1 | . . 1 Utility . | . . . Weapon 1 | . . 1 Highest Loss Streak 1 | . . 1 To Critical Strikes . | . . . Average Slot Usage (%) 86 | . 85 86 Engine 12 | . 14 11 Wheel 26 | . 28 25 Flight 6 | . . 11 Storage 12 | . 14 11 Hackware 3 | . . 5 Energy Gun 11 | . 14 9 Ballistic Gun 12 | . 14 12 Peak Build Rating 14 | 6 6 14 Average Rating 7 | 4 6 9 On Entrance 4 | . 6 6 Naked Turns . | . . . Heaviest Build 12 | 10 10 12 Greatest Support 42 | 32 32 42 Greatest Overweight (x) 2 | . . 2 Average Overweight (x) . | . . . Largest Inventory Capacity 8 | 8 8 8 Average Capacity 7 | 7 8 8 Most Carried 8 | 2 2 8 Average Carried 3 | 1 2 5 Final Capacity 8 | 8 8 8 Final Carried 8 | 2 2 8 Class Distribution -------------------- 100% | Mutant Dominant Class ---------------- Mutant | -10/Materials Mutant | -9/Materials Resources | -11 -10 -9 ----------- Run | Yrd Mat Mat Matter Collected 348 | 211 46 91 Remotely . | . . . Salvage Created 137 | . 46 91 Parts 13 | . 4 9 Haulers Intercepted . | . . . Recyclers Shooed . | . . . Parts Field Recycled . | . . . Retrieved Matter . | . . . Parts Self-Destructed . | . . . Prevented . | . . . Kills | -11 -10 -9 ------- Run | Yrd Mat Mat Combat Hostiles Destroyed 6 | . 1 5 Guns 6 | . 1 5 Classes Destroyed 2 | . 1 1 Swarmer 4 | . . 4 Grunt 2 | . 1 1 Best Kill Streak 4 | . 1 4 Combat Bots Only 4 | . 1 4 Max Kills in Single Turn 2 | . 1 2 Gunslinging 1 | . . 1 Exploded . | . . . Melee . | . . . Uniques/NPCs Destroyed . | . . . Combat | -11 -10 -9 -------- Run | Yrd Mat Mat Hostile Shots Fired 55 | . 7 48 Missed 14 | . 1 13 Damage Taken 416 | . 76 340 Core 113 | . . 113 Absorbed by Shields . | . . . Core Remaining (%) 100 | 100 100 . Volleys Fired 23 | . 8 15 Largest 2 | . 2 2 Hottest 60 | . 60 60 Shots Fired 45 | . 15 30 Gun 45 | . 15 30 Cannon . | . . . Launcher . | . . . Special . | . . . Kinetic 29 | . 8 21 Thermal 16 | . 7 9 Explosive . | . . . Electromagnetic . | . . . Robot Hit Streak 7 | . 5 7 Robot Miss Streak 3 | . 2 3 Penetration Max . | . . . Secondary Targets 1 | . . 1 Max Gunslinging Chain 1 | . . 1 Shots Hit Robots 26 | . 9 17 Core Hits 11 | . 3 8 Critical Kills 1 | . 1 . Critical Parts Destroyed . | . . . Critical Strikes 1 | . 1 . Destroy 1 | . 1 . Melee Attacks . | . . . Impact . | . . . Slashing . | . . . Piercing . | . . . Sneak Attacks . | . . . Combat Hostiles . | . . . Follow-up Attacks . | . . . Damage Inflicted 278 | . 89 189 Guns 278 | . 89 189 Cannons . | . . . Explosions . | . . . Melee . | . . . Ramming . | . . . Kinetic 147 | . 32 115 Thermal 131 | . 57 74 Explosive . | . . . Electromagnetic . | . . . Impact . | . . . Slashing . | . . . Piercing . | . . . Highest Corruption . | . . . Average Corruption . | . . . Corruption Purged . | . . . Corruption Blocked . | . . . Overload Shots . | . . . Overflow Damage . | . . . Projectiles . | . . . Explosions . | . . . Melee . | . . . Knockbacks . | . . . Impact . | . . . Kinetic . | . . . Secondary . | . . . Self-Inflicted Damage . | . . . Shots . | . . . Rammed . | . . . Targets Rammed . | . . . Kicked . | . . . Crushed . | . . . Highest Temperature 38 | . 38 28 Average Temperature 15 | . 23 10 Received Heat Transfer 147 | . 42 105 Siege Activations . | . . . Robots Corrupted . | . . . Combat Hostiles . | . . . Parts Fried . | . . . Impact Corruptions . | . . . Robots Melted . | . . . Combat Hostiles . | . . . Parts Melted 1 | . . 1 Heat Transferred 300 | . 125 175 Parts Sabotaged . | . . . Parts Stolen . | . . . Parts Stripped . | . . . Power Chain Reactions . | . . . Alert | -11 -10 -9 ------- Run | Yrd Mat Mat Peak Influence 139 | . 35 139 Initial 14 | . . 14 Average 64 | . 16 109 Maximum Alert Level . | . . . Low Security (%) 100 | 100 100 100 Level 1 . | . . . Level 2 . | . . . Level 3 . | . . . Level 4 . | . . . Level 5 . | . . . High Security . | . . . Max Security . | . . . Squads Dispatched 3 | . . 3 Investigation . | . . . Extermination . | . . . Reinforcement 3 | . . 3 Assault . | . . . Garrison . | . . . Intercept . | . . . Searches Triggered . | . . . Construction Impeded . | . . . Haulers Reinforced . | . . . Active Scanning Responses . | . . . Cargo Convoy Interrupts . | . . . Stealth | -11 -10 -9 --------- Run | Yrd Mat Mat Distress Signals 1 | . . 1 Communications Jammed . | . . . Distress Signals . | . . . Times Spotted 16 | . 3 13 Peak Tracking Total 5 | . 3 5 Tactical Retreats . | . . . Traps | -11 -10 -9 ------- Run | Yrd Mat Mat Traps Triggered . | . . . Indirectly . | . . . Trap Hack Attempts . | . . . Triggered . | . . . Disarmed . | . . . Reprogrammed . | . . . Reused . | . . . Traps Extracted . | . . . Installed . | . . . Triggered . | . . . Machines | -11 -10 -9 ---------- Run | Yrd Mat Mat Machines Disabled . | . . . Max in Single Turn . | . . . Machines Repaired . | . . . Machines Dismantled . | . . . Machines Sabotaged . | . . . Overloaded Fab Kills . | . . . Hacking | -11 -10 -9 --------- Run | Yrd Mat Mat Machines Accessed . | . . . Terminals . | . . . Fabricators . | . . . Repair Stations . | . . . Recycling Units . | . . . Scanalyzers . | . . . Garrison Access . | . . . Total Hacks . | . . . Successful . | . . . Failed . | . . . Catastrophic . | . . . Database Lockouts . | . . . Manual . | . . . Terminals . | . . . Fabricators . | . . . Repair Stations . | . . . Recycling Units . | . . . Scanalyzers . | . . . Garrison Access . | . . . Terminal Hacks . | . . . Fabricator Hacks . | . . . Repair Station Hacks . | . . . Recycling Unit Hacks . | . . . Scanalyzer . | . . . Garrison Access Hacks . | . . . Unauthorized Hacks . | . . . Terminals . | . . . Fabricators . | . . . Repair Stations . | . . . Recycling Units . | . . . Scanalyzers . | . . . Garrison Access . | . . . Data Cores Recovered . | . . . Used . | . . . Hacking Detections . | . . . Full Trace Events . | . . . Feedback Events . | . . . Feedback Blocked . | . . . Robot Schematics Acquired . | . . . Robots Built . | . . . Authchips . | . . . Time . | . . . Total Robot Build Rating . | . . . Part Schematics Acquired . | . . . Parts Built . | . . . Authchips . | . . . Time . | . . . Total Part Build Rating . | . . . Parts Repaired . | . . . Time . | . . . Parts Recycled . | . . . Recycled Matter . | . . . Retrieved Matter . | . . . Retrieved Components . | . . . Parts Scanalyzed . | . . . Part Schematics Acquired . | . . . Parts Damaged . | . . . Bothacking | -11 -10 -9 ------------ Run | Yrd Mat Mat Used RIF Installer . | . . . Robots Hacked . | . . . Non-combat . | . . . Combat . | . . . Robot Hacks Applied . | . . . Relay Couplers Released . | . . . Fabnet Peak Effective % . | . . . Robots Rewired . | . . . Allies Hacked . | . . . Hacks Repelled . | . . . Allies | -11 -10 -9 -------- Run | Yrd Mat Mat Total Allies . | . . . Largest Group . | . . . Highest-Rated Group . | . . . Highest-Rated Ally . | . . . Total Orders . | . . . Ally Attacks . | . . . Total Damage . | . . . Kills . | . . . Allies Corrupted . | . . . Allies Melted . | . . . Intel | -11 -10 -9 ------- Run | Yrd Mat Mat Robot Analysis Total . | . . . Derelict Logs Recovered . | . . . Drone Launches . | . . . Drone Recoveries . | . . . Exploration | -11 -10 -9 ------------- Run | Yrd Mat Mat Turns Passed 350 | 48 113 189 Spaces Moved 240 | 38 82 120 Core 1 | 1 . . Treads . | . . . Legs . | . . . Wheels 206 | 37 82 87 Hover . | . . . Flight 33 | . . 33 Fastest Speed 50 | 50 100 93 Average Speed 102 | 98 100 106 Slowest Speed 210 | 100 100 210 Overloaded Moves . | . . . Propulsion Burnouts . | . . . Robots Hopped . | . . . Cave-ins Triggered . | . . . Exploration Rate (%) 17 | 4 27 22 Regions Visited 2 Branch Regions . Pre-discovered Areas . | . . . Known Exits Taken . | . . . Unknown Exits Taken 2 | 1 1 . Scrap Searched . | . . . Spaces Dug . | . . . Terrain Destroyed . | . . . Melee . | . . . Projectile . | . . . AOE . | . . . Terrain Rammed . | . . . Walls Destroyed . | . . . Machines Disabled . | . . . Actions | -11 -10 -9 --------- Run | Yrd Mat Mat Total 295 | 46 99 150 Wait 10 | . 10 . Move 238 | 37 81 120 Hop . | . . . Pick Up 8 | 3 . 5 Fast Attach 9 | 5 . 4 Attach 1 | 1 . . Detach . | . . . Swap 5 | . . 5 Drop 1 | . . 1 Fire 23 | . 8 15 Melee . | . . . Ram . | . . . Kick . | . . . Crush . | . . . Escape Stasis . | . . . Rewire . | . . . Trap . | . . . Miscellaneous . | . . . Route ------- -11/Scrapyard -10/Materials -9/Materials History --------- Turn | Location | Event 18 | -11/Scrapyard | Discovered new exit (range 16) 49 | -11/Scrapyard | Entered Materials 160 | -10/Materials | Discovered new exit (range 3) 162 | -10/Materials | Entered another Materials area 162 | -9/Materials | Evolved 2 slots: Propulsion x2 317 | -9/Materials | Build established: Mutant 351 | -9/Materials | Self-destructed Last Messages --------------- 00221_ Acquired 4 matter. 00227_ Acquired Flight Unit. 00247_ Acquired Flak Cannon. 00250_ Acquired System Shield. 00258_ O-16 Technician: "IFF HANDSHAKE FAILED. SECURING TERMINAL." 00260_ T-07 Excavator destroyed. 00265_ G-34 Mercenary destroyed. 00282_ Acquired 39 matter. 00301_ Acquired Imp. Aluminum Leg. 00309_ ALERT: Hostiles spotted, dispatching reinforcements to Terminal M005. 00311_ K-01 Serf collects debris. 00330_ Acquired Prototype Ballistic Gun. 00330_ Identified Imp. Assault Rifle. 00334_ K-01 Serf cleans the Atomic Centrifuge. 00334_ Com. Wheel destroyed. 00341_ K-01 Serf cleans the Atomic Centrifuge. 00349_ ALERT: Hostiles spotted, dispatching reinforcements to Terminal M007. Map ----- +----------------------------------------------------+ | ?????????????????????????????????????????????????? | | ?????????????????????????????????????????????????? | | ?????????????????????????????????????????????????? | | ?????????????????????????????????????????????????? | | ?????????????????????????????????????????????????? | | ?????????????????????????????????????????????????? | | ?????????????????????????????????????????????????? | | ?????????????????????????????????????????????????? | | ?????????????????????????????????????????????????? | | ?????????????????????????????????????????????????? | | ?????????????????????????????????????????????????? | | ?????????????????????????????????????????????????? | | ?????????????????????????????????????????????????? | | ????????????????##+######????????????????????????? | | ???????????????? ????????????????????????? | | ????????????????? ????????????????????????? | | ?????????????????? ????????????????????????? | | ??????????????????#g #????????????????????????? | | ??????????????????# #?##+###+##??????????????? | | ??????????????????# g #?# #??????????????? | | ??????????????????# #?# """ #??????????????? | | ??????????????????# #?# ! "R" #??????????????? | | ??????????????????# ### " " #??????????????? | | ################### # #??????????????? | | # # = #??????????????? | | # @/ #??????????????? | | # """"" """ k # [ =#??????????????? | | + """"" """ !! Yg#########??????????????? | | # """"" """ !! #?????????????????????? | | # !! ??????????????? | | # ????????????? | | # u ????????????? | | ## ##############+## #########?????????????? | | ?# #???????????? #######?????????????????????? | | ?# #????????????"" #???????????????????????????? | | ?# #???????????""" #???????????????????????????? | | ?# #####???????""" #???????????????????????????? | | ## ?????? #???????????????????????????? | | ????????? #???????????????????????????? | | ???????? #???????????????????????????? | | ????????##???????????????????????????? | | ?????????????????????????????????????? | | " """ ""???????????????????????????????????????? | | " """ ??????????????????????????????????????????? | | " """ """??????????????????????????????????????? | | ????????????????????????????????????? | | ????????????????????????????????????? | | " """ """??????????????????????????????????????? | | " """ ??????????????????????????????????????????? | | " """ """??????????????????????????????????????? | +----------------------------------------------------+ Best States ------------- Heat Dissipation 28 Energy Generation 10 Energy Capacity 125 Matter Stores 291 Matter Capacity 300 Sight Range 16 Terrain Scan Density 10 Evasion (%) 41 Defensive Hacking 10 Item Schematics ----------------- None Robot Schematics ------------------ None Fabricated ------------ Nothing Alien Tech Used ----------------- None Achievements -------------- None Challenges ------------ None Game ------ Seed ThunderGhostBuckler Manual? 0 Play Time 00:05:53 Cumulative 19.2 hours Start 2024.09.18 @ 17:01:45 End 2024.09.18 @ 17:08:13 Sessions 1 Manual Loads 0 Difficulty Rogue Special Mode None Game No. 82 Rogue 82 Adventurer 0 Explorer 0 Win Type - Total 0 Types 0/0/0/0/0/0/0/0/0 Lore% 10 Gallery% 23 Achievement% 15 Wizard Run 0 Options --------- Layout 2 ASCII 0 Keyboard 0 Movement Mouse Keybinds 0 Fullscreen 1 Font 16/SmallcapsGlow Map View 55x47 Zoom Use 0% Tactical HUD 1 Map Filters NONE Filters NONE Steam 1 RUN: 2a97b0a7-d243-4fc1-a06c-79806668062f